Cogmind - Beta 17.1 @@@ ROGUE MODE // 2026.09.11 @ 12:54:38 Player: daxter767676 Result: Destroyed by YJ-E1Q(R) with Subdweller Machine Gun Performance ------------- Evolutions (0) 0 Regions Visited (2) 400 Robots Destroyed (14) 70 Value Destroyed (427) 427 Prototype IDs (1) 20 Alien Tech Used (0) 0 Bonus (5000) 5000 TOTAL SCORE: 5917 Bonus ------- Prayed to X0-1V1 5000 Cogmind --------- Core Integrity 0/200 Matter 300/300 Energy 250/250 System Corruption 0% Temperature Cool (0) Movement Rolling (100) Location -10/Subcaves Parts ------- > --- POWER (1) -------- Ion Engine > --- PROPULSION (2) --- Compact Wheel Compact Wheel > --- UTILITY (2) ------ Medium Storage Unit X0-1V1's Piety Tracker > --- WEAPON (2) ------- Small Laser Beam Cannon > --- INVENTORY (10) --- Compact Wheel Compact Wheel Heat Sink Heat Sink Structural Scanner Improved Terrain Scanner Shield Generator Shield Generator Rocket Launcher Mining Laser Peak State ------------ > --- POWER ------------ Ion Engine > --- PROPULSION ------- Compact Wheel Compact Wheel > --- UTILITY ---------- Medium Storage Unit X0-1V1's Piety Tracker > --- WEAPON ----------- Small Laser Beam Cannon > --- INVENTORY -------- Compact Wheel Compact Wheel Heat Sink Heat Sink Structural Scanner Improved Terrain Scanner Shield Generator Shield Generator Rocket Launcher Mining Laser [Rating: 20] Favorites ----------- Power Ion Engine Engine Ion Engine Propulsion Compact Wheel Leg Aluminum Leg Wheel Compact Wheel Utility Medium Storage Unit Device Heat Sink Storage Medium Storage Unit Weapon Small Laser Energy Gun Small Laser Energy Cannon Beam Cannon Build | -11 -10 -10 ------- Run | Yrd Mat Sub Slots Evolved . | . . . Power . | . . . Propulsion . | . . . Utility . | . . . Weapon . | . . . Parts Attached 17 | . 17 . Power 1 | . 1 . Engine 1 | . 1 . Core . | . . . Reactor . | . . . Propulsion 5 | . 5 . Treads . | . . . Leg . | . . . Wheel 5 | . 5 . Hover . | . . . Flight . | . . . Utility 8 | . 8 . Device 7 | . 7 . Storage 1 | . 1 . Processor . | . . . Hackware . | . . . Protection . | . . . Artifact . | . . . Weapon 3 | . 3 . Energy Gun 2 | . 2 . Energy Cannon 1 | . 1 . Ballistic Gun . | . . . Ballistic Cannon . | . . . Launcher . | . . . Special Weapon . | . . . Impact Weapon . | . . . Slashing Weapon . | . . . Piercing Weapon . | . . . Special Melee Weapon . | . . . Unidentified Prototypes 1 | . 1 . Parts Lost 2 | . 2 . Power . | . . . Propulsion 1 | . 1 . Utility . | . . . Weapon 1 | . 1 . Highest Loss Streak 2 | . 2 . To Critical Strikes . | . . . Average Backups 9 | . 9 10 Power . | . . . Propulsion 1 | . 1 2 Utility 4 | . 4 6 Weapon 1 | . 1 2 Tool/Special . | . . . Unused Backups 18 | . 12 6 Power 2 | . 2 . Propulsion 7 | . 5 2 Utility 4 | . 2 2 Weapon 5 | . 3 2 Tool/Special . | . . . Average Slot Usage (%) 98 | . 98 100 Engine 14 | . 14 14 Leg 1 | . 1 . Wheel 25 | . 25 28 Device 13 | . 13 14 Storage 14 | . 14 14 Energy Gun 19 | . 20 14 Energy Cannon 8 | . 7 14 Peak Build Rating 20 | . 20 20 Average Rating 9 | . 8 20 On Entrance 10 | 6 6 20 Avg Prop Armor Cover (%) . | . . . Naked Turns . | . . . Heaviest Build 21 | 14 21 20 Greatest Support 32 | 20 32 32 Greatest Overweight (x) 1 | . 1 . Average Overweight (x) . | . . . Largest Inventory Capacity 10 | . 10 10 Average Capacity 9 | . 9 10 Most Carried 10 | . 10 10 Average Carried 9 | . 9 10 Final Capacity 10 | 8 10 10 Final Carried 10 | 6 10 10 Class Distribution -------------------- 84% | Mutant 15% | Scavenger-Mutant Dominant Class ---------------- Mutant | -10/Materials Mutant | -10/Subcaves Resources | -11 -10 -10 ----------- Run | Yrd Mat Sub Matter Collected 395 | 151 214 30 Remotely . | . . . Salvage Created 621 | . 561 60 Parts 27 | . 26 1 Haulers Intercepted 1 | . 1 . Recyclers Shooed 1 | . 1 . Parts Field Recycled . | . . . Retrieved Matter . | . . . Parts Self-Destructed . | . . . Prevented . | . . . Parts Restored . | . . . Kills | -11 -10 -10 ------- Run | Yrd Mat Sub Combat Hostiles Destroyed 11 | . 10 1 Guns 7 | . 7 . Cannons 2 | . 1 1 AOE 2 | . 2 . Classes Destroyed 5 | . 4 1 Worker 1 | . 1 . Builder 1 | . 1 . Hauler 1 | . 1 . Grunt 10 | . 10 . Subdweller 1 | . . 1 Best Kill Streak 4 | . 4 1 Combat Bots Only 2 | . 2 1 Max Kills in Single Turn 1 | . 1 1 Gunslinging . | . . . Exploded 1 | . 1 . Melee . | . . . Uniques/NPCs Destroyed . | . . . Combat | -11 -10 -10 -------- Run | Yrd Mat Sub Hostile Shots Fired 62 | . 50 12 Missed 14 | . 12 2 Hits 48 | . 38 10 Projectile 48 | . 38 10 Critical Strikes 1 | . 1 . Damage Taken 638 | . 426 212 Core 273 | . 164 109 Absorbed by Shields 125 | . 125 . Core Remaining (%) 100 | 100 . . Volleys Fired 52 | . 43 9 Largest 2 | . 2 2 Hottest 105 | . 105 100 Shots Fired 84 | . 66 18 Gun 72 | . 63 9 Cannon 12 | . 3 9 Launcher . | . . . Special . | . . . Kinetic . | . . . Thermal 46 | . 28 18 Explosive . | . . . Electromagnetic 38 | . 38 . Robot Hit Streak 14 | . 4 14 Robot Miss Streak 5 | . 5 1 Penetration Max . | . . . Secondary Targets 1 | . 1 . Max Gunslinging Chain 1 | . 1 . Shots Hit Robots 52 | . 35 17 Core Hits 25 | . 23 2 Critical Kills . | . . . Critical Parts Destroyed . | . . . Critical Strikes . | . . . Melee Attacks . | . . . Impact . | . . . Slashing . | . . . Piercing . | . . . Sneak Attacks . | . . . Combat Hostiles . | . . . Follow-up Attacks . | . . . Damage Inflicted 691 | . 662 29 Guns 574 | . 562 12 Cannons 51 | . 34 17 Explosions 66 | . 66 . Melee . | . . . Ramming . | . . . Kinetic . | . . . Thermal 365 | . 336 29 Explosive . | . . . Electromagnetic 326 | . 326 . Impact . | . . . Slashing . | . . . Piercing . | . . . Highest Corruption . | . . . Average Corruption . | . . . Corruption Purged . | . . . Corruption Blocked . | . . . Overload Shots . | . . . Overflow Damage . | . . . Projectiles . | . . . Explosions . | . . . Melee . | . . . Knockbacks . | . . . Impact . | . . . Kinetic . | . . . Secondary . | . . . Self-Inflicted Damage 76 | . 76 . Shots 2 | . 2 . Rammed . | . . . Targets Rammed . | . . . Kicked . | . . . Crushed . | . . . Highest Temperature 212 | . 212 . Average Temperature 56 | . 56 . Received Heat Transfer 209 | . 209 . Siege Activations . | . . . Martial Activations . | . . . Shielding Activations . | . . . Robots Disrupted . | . . . Combat Hostiles . | . . . Robots Corrupted . | . . . Combat Hostiles . | . . . Parts Fried . | . . . Impact Corruptions . | . . . Robots Melted . | . . . Combat Hostiles . | . . . Parts Melted . | . . . Heat Transferred 854 | . 792 62 Parts Sabotaged . | . . . Parts Stolen . | . . . Parts Stripped . | . . . Power Chain Reactions 2 | . 2 . Alert | -11 -10 -10 ------- Run | Yrd Mat Sub Maximum Alert Level . | . . . Low Security (%) 100 | . 100 . Level 1 . | . . . Level 2 . | . . . Level 3 . | . . . Level 4 . | . . . Level 5 . | . . . High Security . | . . . Max Security . | . . . Peak Influence 104 | . 104 . Initial . | . . . Average 27 | . 27 . Influence Increases 298 | . 298 . Destroy 0b10 Robot/C 200 | . 200 . Destroy 0b10 Robot/NC 20 | . 20 . Destroy Leader 52 | . 52 . Successful Hack 22 | . 22 . Destroy Structure 4 | . 4 . Influence Decreases 298 | . 298 . Time Decay 278 | . 278 . Lost Part 20 | . 20 . Squads Dispatched 2 | . 2 . Investigation 1 | . 1 . Extermination . | . . . Reinforcement 1 | . 1 . Assault . | . . . Garrison . | . . . Intercept . | . . . Searches Triggered . | . . . Construction Impeded . | . . . Haulers Reinforced . | . . . Active Scanning Responses . | . . . Cargo Convoy Interrupts . | . . . Stealth | -11 -10 -10 --------- Run | Yrd Mat Sub Distress Signals 3 | . 3 . Communications Jammed . | . . . Distress Signals . | . . . Times Spotted 21 | . 19 2 Peak Tracking Total 4 | . 4 1 Tactical Retreats . | . . . Traps | -11 -10 -10 ------- Run | Yrd Mat Sub Traps Triggered 2 | . 2 . Indirectly . | . . . Trap Hack Attempts . | . . . Triggered . | . . . Disarmed . | . . . Reprogrammed . | . . . Reused . | . . . Traps Extracted . | . . . Installed . | . . . Triggered . | . . . Machines | -11 -10 -10 ---------- Run | Yrd Mat Sub Machines Disabled . | . . . Max in Single Turn . | . . . Machines Repaired . | . . . Machines Dismantled . | . . . Machines Sabotaged . | . . . Overloaded Fab Kills . | . . . Hacking | -11 -10 -10 --------- Run | Yrd Mat Sub Machines Accessed 5 | . 5 . Terminals 4 | . 4 . Fabricators . | . . . Repair Stations . | . . . Recycling Units 1 | . 1 . Scanalyzers . | . . . Garrison Access . | . . . Total Hacks 15 | . 15 . Successful 9 | . 9 . Failed 6 | . 6 . Catastrophic . | . . . Database Lockouts . | . . . Manual 26 | . 26 . Terminals 11 | . 11 . Fabricators . | . . . Repair Stations . | . . . Recycling Units 4 | . 4 . Scanalyzers . | . . . Garrison Access . | . . . Terminal Hacks . | . . . Fabricator Hacks . | . . . Repair Station Hacks . | . . . Recycling Unit Hacks . | . . . Scanalyzer . | . . . Garrison Access Hacks . | . . . Unauthorized Hacks 9 | . 9 . Terminals 5 | . 5 . Assimilate 1 | . 1 . Botnet 1 | . 1 . Operators 1 | . 1 . Skim 2 | . 2 . Fabricators . | . . . Repair Stations . | . . . Recycling Units 4 | . 4 . Monitor 1 | . 1 . Reject 1 | . 1 . Recyclers 1 | . 1 . Mask 1 | . 1 . Scanalyzers . | . . . Garrison Access . | . . . Data Cores Recovered . | . . . Used . | . . . Hacking Detections 5 | . 5 . Full Trace Events 1 | . 1 . Feedback Events . | . . . Feedback Blocked . | . . . Robot Schematics Acquired . | . . . Robots Built . | . . . Authchips . | . . . Time . | . . . Total Robot Build Rating . | . . . Part Schematics Acquired . | . . . Parts Built . | . . . Authchips . | . . . Time . | . . . Total Part Build Rating . | . . . Part Studies Acquired . | . . . Parts Repaired . | . . . Time . | . . . Parts Recycled . | . . . Recycled Matter . | . . . Retrieved Matter . | . . . Retrieved Components . | . . . Parts Scanalyzed . | . . . Part Schematics Acquired . | . . . Parts Damaged . | . . . Bothacking | -11 -10 -10 ------------ Run | Yrd Mat Sub Used RIF Installer . | . . . Robots Hacked . | . . . Non-combat . | . . . Combat . | . . . Robot Hacks Applied . | . . . Relay Couplers Released . | . . . Fabnet Peak Effective % . | . . . Robots Rewired . | . . . Allies Hacked . | . . . Hacks Repelled . | . . . Allies | -11 -10 -10 -------- Run | Yrd Mat Sub Total Allies . | . . . Largest Group . | . . . Highest-Rated Group . | . . . Highest-Rated Ally . | . . . Total Orders . | . . . Ally Attacks . | . . . Total Damage . | . . . Kills . | . . . Allies Corrupted . | . . . Allies Melted . | . . . X0-1V1 Amusement Gains 5 | . 5 . Average Entertainment 3 | . 5 3 Good Acts 1 | . . 1 Intel | -11 -10 -10 ------- Run | Yrd Mat Sub Active Infowar (turns) 164 | . 164 . Terrain 159 | . 159 . Structural 5 | . 5 . Robot Analysis Total . | . . . Derelict Logs Recovered . | . . . Drone Launches . | . . . Drone Recoveries . | . . . Exploration | -11 -10 -10 ------------- Run | Yrd Mat Sub Turns Passed 1068 | . 966 102 Spaces Moved 711 | 1 652 58 Core . | . . . Treads . | . . . Legs 19 | 1 18 . Wheels 692 | . 634 58 Hover . | . . . Flight . | . . . Fastest Speed 80 | 120 80 100 Average Speed 96 | 120 96 100 Slowest Speed 120 | 120 120 100 Overloaded Moves . | . . . Propulsion Burnouts . | . . . Robots Hopped . | . . . Potential Cave-ins . | . . . Cave-ins Triggered . | . . . Exploration Rate (%) 34 | 2 94 7 Regions Visited 2 Branch Regions 1 Pre-discovered Areas 1 | . . 1 Known Exits Taken . | . . . Unknown Exits Taken 2 | 1 1 . Scrap Searched . | . . . Spaces Dug . | . . . Terrain Destroyed 4 | . 4 . Melee . | . . . Projectile . | . . . AOE 4 | . 4 . Terrain Rammed . | . . . Walls Destroyed . | . . . Machines Disabled . | . . . Actions | -11 -10 -10 --------- Run | Yrd Mat Sub Total 1008 | . 924 84 Wait 198 | . 181 17 Move 709 | . 651 58 Hop . | . . . Pick Up 12 | . 12 . Fast Attach 10 | . 10 . Attach 1 | . 1 . Detach 1 | . 1 . Swap 9 | . 9 . Drop 16 | . 16 . Fire 52 | . 43 9 Melee . | . . . Ram . | . . . Kick . | . . . Crush . | . . . Escape Stasis . | . . . Rewire . | . . . Trap . | . . . Miscellaneous . | . . . Route ------- -11/Scrapyard -10/Materials (discovered 6 exits: [*Mat x3] / [*Min x2] / [*Sub]) -10/Subcaves History --------- Turn | Location | Event 1 | -11/Scrapyard | Discovered new exit (range 0) 1 | -11/Scrapyard | Entered Materials 165 | -10/Materials | Core integrity fell below 50% 232 | -10/Materials | Discovered new exit (range 15) 394 | -10/Materials | Discovered new exit (range 12) 586 | -10/Materials | Discovered new exit (range 15) 641 | -10/Materials | Build established: Mutant 662 | -10/Materials | Discovered new exit (range 16) 770 | -10/Materials | Discovered new exit (range 15) 837 | -10/Materials | Discovered new exit (range 6) 961 | -10/Materials | Prayed at D.C.S.S. Altar Unit 967 | -10/Materials | Entered Subcaves 974 | -10/Subcaves | Learned location of Zion (-7) 974 | -10/Subcaves | Met a Zionite searching for "candidates" 975 | -10/Subcaves | Ranged accuracy permanently improved by X0-1V1 (+5%; -50 max core) 1064 | -10/Subcaves | Core integrity fell below 20% 1069 | -10/Subcaves | Destroyed by YJ-E1Q(R) with Subdweller Machine Gun Last Messages --------------- 00963_ Dropped Shield Generator. 00964_ Acquired Prototype Device. 00965_ Identified X0-1V1's Piety Tracker. 00965_ U-05 Engineer builds a Wall. LOCATION=UNKNOWN AMBIENT_HEAT=-10 GOAL=ESCAPE 00973_ Q7-B20(z): "She is not going to be happy we haven't found any suitable candidates yet." 00974_ Q7-B20(z): "Hey you! It's really dangerous down here, I feel that you could die at any moment. For your health and safety might I suggest a trip to Zion?" World map updated: -7/Zion. 00975_ X0-1V1: "Any self-respecting god will have their pound of flesh." (permanent -50 core integrity, +5% ranged accuracy) 00986_ Q7-B20(z) destroyed. 00992_ 9Y-YRP(R) destroyed. 00996_ Acquired 30 matter. 00998_ Subatomizers dissect the Sub. Optics. 01069_ X0-1V1 howls with laughter! Map ----- +----------------------------------------------------+ | ????????????????### &#####???????????????????? | | ???????????????## % #??????????????????????? | | ??????????????## #####???????????????????? | | ??????????????# #?# ##??????????????????? | | ??????????????# ### ##?????????????????? | | ??????????????# ## ###???????????????? | | ??????????????# ## #???????????????? | | ??????????????## ##??????????????? | | ??????????????## #??????????????? | | ??????????????# ## #######????????? | | ??????????????# ## ### ##???????? | | ??????????????# # ##?? ###?????? | | ??????????????# ## ###??# ????? | | ??????????????# ### #???? ?????? | | ??????????????# ## #??? ?????? | | ??????????????## ### ###??? ?????? | | ???????????????# #####????? ???????? | | ???????????????# ######## ??????????? | | ???????????????# ## #??????????????? | | ???????????????# #??????????????? | | ???????????????######## #??????????????? | | ??????????????????????## #??????????????? | | ??????????????????????## ###????????????? | | ?????????????????????## ##???????????? | | ????????????????????## #???????????? | | ????????????????????#@ #???????????? | | ????????????????????##R ### ??????? | | ?????????????????? ###?? ???????? | | ????????????????# #$#" #???? ???????? | | ????????????????#??### #???? ??????? | | ?????????????????????### ???? ???????? | | ???????????????????????? ????## #???????? | | ???????????????????????? ?????? #????????? | | ???????????????????????? ?????? #??????????? | | ???????????????????????? #?????????????????? | | ???????????????????????? #?????????????????? | | ???????????????????????? ?????????????????? | | ???????????????????????? ??????????????????? | | ????????????????????????? ???????????????????? | | ????????????????????????? ???????????????????? | | ????????????????????????? ???????????????????? | | ????????????????????????? ???????????????????? | | ?????????????????????????????????????????????? | | ?????????????????????????????????????????????? | | ?????????????????????????????????????????????? | | ?????????????????????????????????????????????? | | ?????????????????????????????????????????????? | | ?????????????????????????????????????????????? | | ?????????????????????????????????????????????? | | ?????????????????????????????????????????????? | +----------------------------------------------------+ Best States ------------- Heat Dissipation 35 Energy Generation 10 Energy Capacity 250 Matter Stores 300 Matter Capacity 300 Sight Range 16 Terrain Scan Range 16 Terrain Scan Density 10 Evasion (%) 55 Item Schematics ----------------- None Robot Schematics ------------------ None Fabricated ------------ Nothing Repaired ---------- Nothing Studied --------- None Alien Tech Used ----------------- None Achievements -------------- Chaos Is Inevitable Challenges ------------ None Game ------ Seed LinkedPoweredCompactor Manual? 0 Play Time 00:20:35 Cumulative 172.6 hours Start 2026.09.11 @ 12:29:09 End 2026.09.11 @ 12:54:38 Sessions 1 Manual Loads 0 Difficulty Rogue Special Mode None Game No. 188 Rogue 186 Adventurer 2 Explorer 0 Win Type - Total 0 Types 0/0/0/0/0/0/0/0/0/0 Lore% 67 Gallery% 55 Achievement% 35 Wizard Run 0 Options --------- Layout 2 ASCII 0 Keyboard 1 Movement Vi Keybinds 0 Fullscreen 2 Font 32/SmallcapsGlow Map View 38x22 Zoom Use 67% Tactical HUD 1 Map Filters NONE Filters NONE Steam 1 RUN: 5c8c7f14-e96c-4878-9c72-67d799838685